Workbook

Sheet Guide
A1: GUIDE
B3: Ce fichier recense les documents types utiles pour le déroulement d'un projet
B5: Vous y trouverez : | C5: Les livrables à produire en complément d'ISI
C6: Le suivi d'avancement du projet
C7: Le Risk Analysis Register (RAR)
C8: Le Relevé d'Informations Décisions Actions (RIDA)
A10: Afin de simplifier leur accès, compléter, dans l'onglet "Livrables", les chemins d'accès aux documents référencés.
A11: Se référer aux guides correspondants pour renseigner le RIDA et le RAR (Ci-dessous).
A12: L'onglet "Registre Risks & Opport" contient deux exemples de risques à ne pas oublier de supprimer pour une utilisation en
A13: conditions réelles.
A15: Pour utiliser le RIDA, il faut que l'utilisation des macros soit activée. Si les macros sont désactivées, un avertissement de
A16: sécurité s'affichera dans un bandeau en haut de la feuille. Pour les activer, cliquer sur "Options" dans ce bandeau,
A17: et "Activer ce contenu". Une fois activées, un onglet suplémentaire ("compléments") s'ajoutera à la barre d'outils en haut de la
A18: feuille. Il contient les boutons nécessaires pour lancer les fonctions automatiques du RIDA.
A21: Si la mise à jour d'une feuille ne se fait pas instantanément, enregistrez le fichier afin de prendre en compte les
A22: dernières modifications.
A27: VERSION | B27: DATE | C27: DESCRIPTION | K27: AUTEUR
A28: 0 | B28: 2014-11-20 | C28: Création du document | K28: E. CREFF
A29: 1 | B29: 2015-03-11 | C29: revue du document pour déploiement iSi | K29: N.MEERSSEMAN
A30: 2 | B30: 2015-04-03 | C30: correction formats date et calcul provision pour risques | K30: N.MEERSSEMAN
A31: 3 QU431_2f | B31: 2015-06-17 | C31: RIDA : ajout pourcentage 0% automatique sur nouvelle action RAR : modification valeurs exemple suivi : modification formats | K31: N.MEERSSEMAN
A32: 4 QU431_2g | B32: 2015-09-02 | C32: RIDA : passage des formules en VBA RIDA diffusion : correction calculs tableaux de bord RIDA en cours : améliorations ergonomie de saisie contrôle pour éviter la saise de lignes vides clic droit sur échéance force le champ à date du jour + 1 clic droit sur date force le champ à date du jour augmentation du nombre d'actions possible le champ réalisé (date ou RETARD) est rempli automatiquement | K32: N.MEERSSEMAN
A33: 5 QU431_2h | B33: 2015-11-27 | C33: RIDA en cours : correction bug de passage en RETARD d'actions terminées ou supprimées | K33: N.MEERSSEMAN
A38: Mode d'Emploi
A39: Relevé d'Informations - Décisions - Actions
A41: Mode d'emploi :
A42: Le RIDA remplace le compte rendu de réunion.
A43: Un responsable est nommé pour tenir à jour le RIDA.
A46: 0 - Le RIDA est distribué à tous en début de réunion.
A47: 1 - Le RIDA est renseigné pendant la réunion par le responsable du RIDA.
A48: 2 - Le RIDA est revu au début de la réunion, pour faire le point sur l'avancement des actions décidées antérieurement.
A49: 3 - Le responsable du RIDA archive les Actions Finalisées + les Informations + les Décisions prise à l'avant dernière réunion
A50: (de façon à ne conserver dans l'onglet "RIDA en cours" que les actions, antérieures ou nouvelles, en cours et les informations
A51: ou Décisions "fraîches").
A52: 4 - Le responsable du RIDA renseigne les nouvelles informations, décisions et actions à lancer.
A53: 5 - A la fin de la réunion, le RIDA est relu pour s'assurer que chacun a eu la même compréhension des Informations,
A54: Décisions ou Actions qui ont été prises.
A55: 6 - A la fin de la réunion, le RIDA est si possible imprimé (ou photocopié si renseigné manuscrit) et donné aux participants
A56: pour action, puis leur est transmis par messagerie au plus tôt.
A57: 7 - Si le RIDA est renseigné manuscrit pendant la réunion, le responsable du RIDA le met ensuite à jour informatiquement
A58: avec les nouveaux éléments avant transmission.
A59: --> aller au point 0
B62: Astuces d'utilisation
B63: -La saisie d'une description met à jour automatiquement le N° d'action, et
B64: recopie la date et l'origine de la ligne précédente
B65: - Archiver (onglet Compléments) => archive les Actions à 100% ainsi que les
B66: Décisions et Informations dans l'onglet "RIDA archive"
B67: -Bouton "Auto Ajuste"(onglet Compléments) => ajuste la hauteur des lignes + définit
B68: la zone d'impression et imprime (avec pré-visualisation)
B69: ATTENTION : ne pas laisser de lignes vides : cela empêche l'archivage automatique de fonctionner
B71: Pour progresser !
B72: Ce qui ne prend pas plus de 2 minutes doit être fait en réunion.
B73: Une étape par Action.
B74: Un Responsable par Action.
A82: Description | C82: Objectif / But de cet outil Le managament des risques et opportunités est un processus continu où les risques du projet sont identifiés et examinés tout au long du cycle de vie du projet ou de l'offre. Le plan de gestion des risques permettra d'identifier la méthodologie utilisée, les rôles et les responsabilités, la notation et l'interprétation. Ci-dessous les recommandations des meilleures pratiques méthodologiques pour les projets en utilisant le registre des risques et opportunités, outil pour gérer les risques. Il fait partie du plan de gestion des risques. Identification des risques -Le processus commence dans la phase de vente (S0) menant à la décision de '"Bid / No Bid" (S1) -Permet d'identifier rapidement les risques les plus importants. L'identification des risques continuera à travers le cycle de vie du projet -Le PM doit avoir terminé toutes les identifications des risques par la création de la charte de projet (P1) L'évaluation du risque (voir l'onglet "1 - Registre des risques») -Permet d'identifier, de quantifier chacun des risques, et de définir les actions à entreprendre en vue de réduire et de maîtriser les risques. -Cet outil doit être utilisé avant une décision de "Bid/No-Bid" (S1)afin de qualifier la criticité du risque et de le mettre à jour jusqu'à la fermeture du projet. Pendant toute la durée du contrat il est nécessaire de maintenir une version alignée avec les négociations avec le client. Au cours de la phase d'exécution, il est très important de continuer à suivre tous les risques en mettant à jour le registre des risques.
A86: Type de document
C87: Outil | D87: X | E87: Template | G87: Check List | I87: Bonne pratique | K87: Instruction
A90: Validité
C91: Mandataire | D91: X | E91: Critère | G91: Global | I91: Local | J91: X
A94: Critère
C95: Taille | D95: X | E95: Autre
A98: Rev | B98: Date | C98: Description | K98: Autor
A100: 0 | B100: 2013-03-20 | C100: Première version | K100: H.Rolando
A101: 1.0 | B101: 2014-11-19 | C101: Intégration dans fichier global PMP | K101: E.Creff
A102: 1.1
A103: 1.2
A104: 1.3
A105: 1.4
A106: 1.5
A107: 1.6

Sheet Livrables
C1: Livrables en complément d'ISI
A2: Emetteur du doc : | C2: Cedric BIZOT | H2: Date : | I2: 2017-01-02
A3: IDENTIFICATION
A4: Raison sociale client : | C4: Automotive Exteriors Europe SAS
A5: N° Projet / N° Avenant : | C5: I8716-LKK-8699273-AEE-GF
A6: Libellé projet : | C6: Groupes froids
A7: Chargé d'affaires : | C7: Laurent KOWALIK
A8: Chef de Projets : | C8: Cedric BIZOT
A10: Document à produire | D10: Référence | G10: Chemin d'accès | H10: Version
A11: WBS (Work Breakdown Structure) | G11: Voir dossier BOX
A12: LDA (Liste de Documents Applicables)
A13: Planning | G13: Voir dossier BOX
A14: Suivi Cash Flow | G14: Pas de suivi Cash Flow car paiement client 100% à l'émission du PV de récéption final sans réserve
A15: Finances (coûts) | G15: Voir dossier BOX
A16: Ressources
A17: Parties prenantes
A18: Communication
A19: Achats | G19: Voir dossier BOX
A20: Sécurité | G20: Voir dossier BOX
A21: Plan Assurance Qualité
A22: Gestion de Configuration
A23: Dossier BOX | G23: Dossier Box projet GF AEE
A38: Mise à jour
A39: Date | C39: établi par | E39: vérifié par | G39: Commentaires
A40: 2017-03-06 | C40: Cédric BIZOT

Sheet RIDA diffusion
C1: Relevé d'Informations - Décisions - Actions
A2: Emetteur du doc : | C2: Cedric B | H2: Date : | I2: 2017-01-02
A3: IDENTIFICATION
A4: Raison sociale client : | C4: Automotive xx
A5: N° Projet / N° Avenant : | C5: I8716-LKK-8699273-AEE-GF
A6: Libellé projet : | C6: Groupes froids
A7: Chargé d'affaires : | C7: Laurent K
A8: Chef de Projets : | C8: Cedric B
B11: Diffusion | F11: Tableaux de bord
B12: Mis à jour le | C12: =TODAY() -> 2020-02-05 | F12: Tableau de bord "en cours"
F13: Nombre de nouvelles Actions | G13: 17
C14: Nom | D14: Société | F14: Nombre d'Actions en retard | G14: 0
B15: Emetteur | C15: Cedric B | D15: Schneider Electric | F15: Nombre de nouvelles Décisions | G15: 0
F16: Nombre de nouvelles Informations | G16: 4
B17: Destinataires | C17: Nom | D17: Société | F17: Taux de réalisation à l'heure des actions en cours | G17: 1
B18: Chargé d'affaires | C18: Laurent K | D18: Schneider Electric
B19: Chef de projet | C19: Cedric B | D19: Schneider Electric
C20: M. Lucas G | D20: Automotive xx | F20: Tableau de bord "Archives"
F21: Nombre Actions soldées | G21: 0
F22: Nombre d'Actions soldées en retard | G22: 0
F23: Nombre d'Actions supprimées | G23: 0
F24: Nombre de Décisions archivées | G24: 0
F25: Nombre d'Informations archivées | G25: 0
F26: Taux de réalisation à l'heure des actions (soldées et en cours) | G26: =IF((G13+G21)<>0,1-((G14+G22)/(G13+G21)),0) -> 1
C32: Nom | D32: Société
B33: Copies à | D33: Schneider Electric
A37: Réunions
A38: N° | B38: Date | C38: Désignation de la réunion | D38: Ordre du jour | F38: Commentaires | J38: Lien CR
A39: 1 | B39: 2016-12-07 | C39: Alignement technique et commercial Schneider Electric/SDEL | F39: Participants : R. M, Ch. O, L. K, C. B | J39: CR 7 Déc 2016
A40: 2 | B40: 2016-12-16 | C40: Réunion de Lancement AEE | D40: Présentation équipe projet, travaux S52, planning projet | F40: Participants : L. G, M. P, R. M, A. O, L. K, C. B | J40: CR 16 Déc 2016
A41: 3 | B41: 2017-01-03 | C41: Réunion sur l'interface de contrôle du GF | F41: Participants : Ch. O, G. M, C. B | J41: CR 3 Jan 2017
A42: 4 | B42: 2017-02-03 | C42: Réunion d'avancement | F42: Participants : R. M, M. K, G. M, C. B | J42: CR 3 Fév 2017
A43: 5 | B43: 2017-03-01 | C43: Réunion d'avancement | F43: Participants : R. M, M. K, G. M, C. B | J43: CR 1 Mars 2017
A44: 6 | B44: 2017-03-24 | C44: Validation AF rév C | F44: Participants : L. G, C. B | J44: CR 24 Mars 2017
A45: 7
A46: 8
A47: 9
A48: 10

Sheet RIDA en cours
D1: Groupes froids | N1: Taux de réalisation à l'heure des actions en cours | R1: ì | T1: Nature | U1: Nature
D2: Relevé d'Informations - Décisions - Actions | N2: 1 | R2: î | T2: I | U2: Information
B3: Mis à jour le | C3: 2020-02-05 | N3: è | R3: è | T3: D | U3: Décision
T4: A | U4: Action
A5: Informations - Décisions - Actions | F5: Actions | N5: Remarques
C6: ='RIDA archive'!C6 -> 0 | G6: Gras = Retard
A7: Date | B7: Origine (réunion, entretien…) | C7: N° | D7: Description | E7: Nature (I/D/A) | F7: Responsable de l'action | G7: Contributeur(s) à l'action | H7: Société | I7: Domaine (Technique, Qualité, …) | J7: Échéance | K7: Echéance renégociée | L7: Réalisé (date ou RETARD) | M7: Statut : 0 à 100% | N7: Commentaire(s) ou suivi
